[Event "Titled Tuesday Blitz April 4 Late 2023"]
[White "Papasimakopoulos, Alexandros"]
[Black "feuervogel1000000"]
[WhiteFideId "4244125"]
[WhiteElo "2359"]
[BlackElo "2284"]
[Result "1-0"]
[Round "05"]
[TimeControl "180+2"]
[Date "2023.04.04"]
[WhiteClock "0:00:28"]
[BlackClock "0:00:02"]

1. d4 {[%clk 0:02:56]}  Nf6 {[%clk 0:02:59]} 2. c4 {[%clk 0:02:54]}  e6 {[%clk 0:03:00]} 3. Nc3 {[%clk 0:02:53]}  Bb4 {[%clk 0:02:58]} 4. Qc2 {[%clk 0:02:52]}  O-O {[%clk 0:02:55]} 5. a3 {[%clk 0:02:51]}  Bxc3+ {[%clk 0:02:55]} 6. Qxc3 {[%clk 0:02:52]}  d5 {[%clk 0:02:55]} 7. Nf3 {[%clk 0:02:51]}  b6 {[%clk 0:02:53]} 8. cxd5 {[%clk 0:02:49]}  exd5 {[%clk 0:02:54]} 9. Bg5 {[%clk 0:02:44]}  Re8 {[%clk 0:01:33]} 10. e3 {[%clk 0:02:42]}  Bg4 {[%clk 0:01:07]} 11. Ne5 {[%clk 0:02:37]}  Bh5 {[%clk 0:00:58]} 12. Bb5 {[%clk 0:02:36]}  Re6 {[%clk 0:00:57]} 13. Rc1 {[%clk 0:02:25]}  c6 {[%clk 0:00:55]} 14. Bd3 {[%clk 0:02:09]}  Bg6 {[%clk 0:00:50]} 15. O-O {[%clk 0:02:05]}  Bxd3 {[%clk 0:00:49]} 16. Nxd3 {[%clk 0:02:06]}  Nbd7 {[%clk 0:00:45]} 17. b4 {[%clk 0:02:05]}  Qe8 {[%clk 0:00:41]} 18. Qc2 {[%clk 0:01:57]}  Ne4 {[%clk 0:00:38]} 19. Bh4 {[%clk 0:01:56]}  Rh6 {[%clk 0:00:38]} 20. Bg3 {[%clk 0:01:56]}  Nxg3 {[%clk 0:00:27]} 21. hxg3 {[%clk 0:01:56]}  Qe7 {[%clk 0:00:27]} 22. Nf4 {[%clk 0:01:51]}  Re8 {[%clk 0:00:20]} 23. b5 {[%clk 0:01:48]}  cxb5 {[%clk 0:00:18]} 24. Nxd5 {[%clk 0:01:48]}  Qg5 {[%clk 0:00:18]} 25. Nf4 {[%clk 0:01:47]}  Nf6 {[%clk 0:00:18]} 26. Qc6 {[%clk 0:01:45]}  Rf8 {[%clk 0:00:17]} 27. Qf3 {[%clk 0:01:41]}  Ng4 {[%clk 0:00:14]} 28. Rc7 {[%clk 0:01:32]}  Nh2 {[%clk 0:00:13]} 29. Qd5 {[%clk 0:01:19]}  Qxd5 {[%clk 0:00:04]} 30. Nxd5 {[%clk 0:01:20]}  Nxf1 {[%clk 0:00:05]} 31. Kxf1 {[%clk 0:01:20]}  Rd6 {[%clk 0:00:05]} 32. Ne7+ {[%clk 0:01:19]}  Kh8 {[%clk 0:00:06]} 33. Rxa7 {[%clk 0:01:19]}  Re6 {[%clk 0:00:05]} 34. Nd5 {[%clk 0:01:18]}  g6 {[%clk 0:00:05]} 35. Nc7 {[%clk 0:01:10]}  Re7 {[%clk 0:00:04]} 36. d5 {[%clk 0:01:06]}  Rc8 {[%clk 0:00:02]} 37. d6 {[%clk 0:01:03]}  Rd7 {[%clk 0:00:02]} 38. Nxb5 {[%clk 0:01:03]}  Rxa7 {[%clk 0:00:02]} 39. Nxa7 {[%clk 0:01:04]}  Rd8 {[%clk 0:00:03]} 40. Nb5 {[%clk 0:01:04]}  Rd7 {[%clk 0:00:03]} 41. Ke2 {[%clk 0:01:02]}  Kg7 {[%clk 0:00:04]} 42. Kd3 {[%clk 0:00:54]}  Kf6 {[%clk 0:00:05]} 43. e4 {[%clk 0:00:51]}  Ke6 {[%clk 0:00:06]} 44. f4 {[%clk 0:00:50]}  f5 {[%clk 0:00:06]} 45. e5 {[%clk 0:00:50]}  Kd5 {[%clk 0:00:06]} 46. Nc3+ {[%clk 0:00:47]}  Kc6 {[%clk 0:00:06]} 47. Kc4 {[%clk 0:00:47]}  Ra7 {[%clk 0:00:06]} 48. a4 {[%clk 0:00:47]}  Ra5 {[%clk 0:00:06]} 49. Kb4 {[%clk 0:00:47]}  Rc5 {[%clk 0:00:06]} 50. Nb5 {[%clk 0:00:46]}  Rd5 {[%clk 0:00:06]} 51. Kc4 {[%clk 0:00:43]}  Rc5+ {[%clk 0:00:05]} 52. Kd3 {[%clk 0:00:44]}  Rd5+ {[%clk 0:00:06]} 53. Kc3 {[%clk 0:00:40]}  Rc5+ {[%clk 0:00:06]} 54. Kb3 {[%clk 0:00:40]}  Rd5 {[%clk 0:00:07]} 55. Nc3 {[%clk 0:00:38]}  Rd2 {[%clk 0:00:07]} 56. Nb5 {[%clk 0:00:31]}  Rd3+ {[%clk 0:00:06]} 57. Kc4 {[%clk 0:00:31]}  Rd1 {[%clk 0:00:05]} 58. e6 {[%clk 0:00:30]}  Rc1+ {[%clk 0:00:04]} 59. Kd4 {[%clk 0:00:30]}  Rd1+ {[%clk 0:00:04]} 60. Ke5 {[%clk 0:00:31]}  Re1+ {[%clk 0:00:05]} 61. Kf6 {[%clk 0:00:31]}  Re4 {[%clk 0:00:02]} 62. d7 {[%clk 0:00:29]}  Kb7 {[%clk 0:00:01]} 63. d8=Q {[%clk 0:00:28]}  Ka6 {[%clk 0:00:02]} 64. Qa8# {[%clk 0:00:28]} 1-0


[Site "https://www.chess.com"]

[Event "Titled Tuesday Blitz April 4 Late 2023"]
[White "Hansen, Eric"]
[Black "Goroshkov, Maksym"]
[WhiteFideId "2606771"]
[BlackFideId "14142716"]
[WhiteElo "2561"]
[BlackElo "2322"]
[Result "1-0"]
[Round "05"]
[TimeControl "180+2"]
[Date "2023.04.04"]
[WhiteClock "0:00:02"]
[BlackClock "0:00:02"]

1. d4 {[%clk 0:02:23]}  Nf6 {[%clk 0:02:58]} 2. c4 {[%clk 0:02:21]}  d6 {[%clk 0:02:57]} 3. Nf3 {[%clk 0:02:21]}  g6 {[%clk 0:02:58]} 4. Nc3 {[%clk 0:02:18]}  Bg7 {[%clk 0:02:58]} 5. e4 {[%clk 0:02:19]}  O-O {[%clk 0:02:59]} 6. h3 {[%clk 0:02:19]}  c5 {[%clk 0:02:59]} 7. d5 {[%clk 0:02:16]}  e6 {[%clk 0:02:58]} 8. Bd3 {[%clk 0:01:55]}  exd5 {[%clk 0:02:57]} 9. exd5 {[%clk 0:01:56]}  Re8+ {[%clk 0:02:56]} 10. Be3 {[%clk 0:01:57]}  Bf5 {[%clk 0:02:44]} 11. Bxf5 {[%clk 0:01:54]}  gxf5 {[%clk 0:02:45]} 12. O-O {[%clk 0:01:55]}  Ne4 {[%clk 0:02:45]} 13. Ne2 {[%clk 0:01:55]}  Nd7 {[%clk 0:02:40]} 14. Nf4 {[%clk 0:01:49]}  Ne5 {[%clk 0:02:35]} 15. Nxe5 {[%clk 0:01:43]}  Bxe5 {[%clk 0:02:21]} 16. Nd3 {[%clk 0:01:40]}  Qf6 {[%clk 0:02:15]} 17. Nxe5 {[%clk 0:01:40]}  Qxe5 {[%clk 0:02:11]} 18. Qc1 {[%clk 0:01:40]}  Kh8 {[%clk 0:02:06]} 19. Bf4 {[%clk 0:01:25]}  Qd4 {[%clk 0:02:04]} 20. Qc2 {[%clk 0:01:14]}  Rg8 {[%clk 0:02:02]} 21. Rad1 {[%clk 0:01:12]}  Qg7 {[%clk 0:01:56]} 22. f3 {[%clk 0:01:13]}  Ng3 {[%clk 0:01:51]} 23. Rfe1 {[%clk 0:01:11]}  Rad8 {[%clk 0:01:39]} 24. Qc3 {[%clk 0:01:05]}  Qxc3 {[%clk 0:01:30]} 25. bxc3 {[%clk 0:01:04]}  Nh5 {[%clk 0:01:30]} 26. Bc1 {[%clk 0:00:52]}  Rde8 {[%clk 0:01:19]} 27. Rxe8 {[%clk 0:00:51]}  Rxe8 {[%clk 0:01:19]} 28. g4 {[%clk 0:00:51]}  fxg4 {[%clk 0:01:11]} 29. hxg4 {[%clk 0:00:51]}  Nf6 {[%clk 0:00:43]} 30. Bf4 {[%clk 0:00:50]}  Rd8 {[%clk 0:00:36]} 31. Re1 {[%clk 0:00:47]}  Re8 {[%clk 0:00:36]} 32. Rb1 {[%clk 0:00:46]}  b6 {[%clk 0:00:28]} 33. Bxd6 {[%clk 0:00:42]}  Kg7 {[%clk 0:00:25]} 34. Kf2 {[%clk 0:00:41]}  Rd8 {[%clk 0:00:17]} 35. Be5 {[%clk 0:00:41]}  Kg6 {[%clk 0:00:17]} 36. Rh1 {[%clk 0:00:34]}  b5 {[%clk 0:00:16]} 37. d6 {[%clk 0:00:12]}  bxc4 {[%clk 0:00:16]} 38. Rb1 {[%clk 0:00:11]}  Nd5 {[%clk 0:00:12]} 39. Rb7 {[%clk 0:00:08]}  a5 {[%clk 0:00:13]} 40. Ra7 {[%clk 0:00:07]}  f6 {[%clk 0:00:09]} 41. Bg3 {[%clk 0:00:07]}  f5 {[%clk 0:00:08]} 42. gxf5+ {[%clk 0:00:05]}  Kxf5 {[%clk 0:00:09]} 43. Rxa5 {[%clk 0:00:06]}  Ke6 {[%clk 0:00:07]} 44. Rxc5 {[%clk 0:00:05]}  Nxc3 {[%clk 0:00:07]} 45. Rxc4 {[%clk 0:00:04]}  Nxa2 {[%clk 0:00:07]} 46. Ke3 {[%clk 0:00:03]}  Rb8 {[%clk 0:00:05]} 47. Kd2 {[%clk 0:00:02]}  Rb2+ {[%clk 0:00:04]} 48. Ke3 {[%clk 0:00:02]}  Rb3+ {[%clk 0:00:04]} 49. Kf2 {[%clk 0:00:02]}  Nb4 {[%clk 0:00:04]} 50. Re4+ {[%clk 0:00:02]}  Kd7 {[%clk 0:00:03]} 51. Re7+ {[%clk 0:00:03]}  Kc6 {[%clk 0:00:04]} 52. Rc7+ {[%clk 0:00:03]}  Kb6 {[%clk 0:00:04]} 53. d7 {[%clk 0:00:03]}  Rd3 {[%clk 0:00:04]} 54. Kf1 {[%clk 0:00:03]}  Nd5 {[%clk 0:00:02]} 55. Ke2 {[%clk 0:00:02]}  Rd4 {[%clk 0:00:02]} 56. Rc8 {[%clk 0:00:02]} 1-0


[Site "https://www.chess.com"]

[Event "Titled Tuesday Blitz April 4 Late 2023"]
[White "Drori, Saar"]
[Black "Lamard, Guillaume"]
[WhiteFideId "2812444"]
[BlackFideId "600261"]
[WhiteElo "2322"]
[BlackElo "2413"]
[Result "0-1"]
[Round "05"]
[TimeControl "180+2"]
[Date "2023.04.04"]
[WhiteClock "0:00:01"]
[BlackClock "0:00:27"]

1. e4 {[%clk 0:03:00]}  c5 {[%clk 0:02:59]} 2. Nf3 {[%clk 0:03:00]}  d6 {[%clk 0:03:00]} 3. d4 {[%clk 0:03:01]}  cxd4 {[%clk 0:03:01]} 4. Nxd4 {[%clk 0:03:01]}  Nf6 {[%clk 0:03:01]} 5. Nc3 {[%clk 0:03:02]}  a6 {[%clk 0:03:02]} 6. g3 {[%clk 0:03:01]}  e5 {[%clk 0:03:02]} 7. Nde2 {[%clk 0:02:59]}  Be7 {[%clk 0:02:55]} 8. Bg2 {[%clk 0:03:00]}  O-O {[%clk 0:02:54]} 9. O-O {[%clk 0:03:00]}  b5 {[%clk 0:02:55]} 10. a4 {[%clk 0:02:56]}  b4 {[%clk 0:02:54]} 11. Nd5 {[%clk 0:02:57]}  a5 {[%clk 0:02:52]} 12. Be3 {[%clk 0:02:51]}  Nbd7 {[%clk 0:02:43]} 13. h3 {[%clk 0:02:41]}  Ba6 {[%clk 0:02:40]} 14. Qd2 {[%clk 0:02:37]}  Nxd5 {[%clk 0:02:37]} 15. exd5 {[%clk 0:02:35]}  Rc8 {[%clk 0:02:34]} 16. Rfc1 {[%clk 0:02:32]}  Nc5 {[%clk 0:02:34]} 17. b3 {[%clk 0:02:16]}  Qd7 {[%clk 0:02:20]} 18. Rab1 {[%clk 0:02:15]}  Rc7 {[%clk 0:02:15]} 19. c3 {[%clk 0:01:55]}  Rfc8 {[%clk 0:02:01]} 20. c4 {[%clk 0:01:53]}  f5 {[%clk 0:02:01]} 21. Re1 {[%clk 0:01:44]}  Rf8 {[%clk 0:02:00]} 22. f4 {[%clk 0:01:06]}  Bf6 {[%clk 0:01:53]} 23. fxe5 {[%clk 0:00:49]}  Bxe5 {[%clk 0:01:53]} 24. Bf4 {[%clk 0:00:42]}  Rcc8 {[%clk 0:01:42]} 25. Nd4 {[%clk 0:00:39]}  Bxd4+ {[%clk 0:01:28]} 26. Qxd4 {[%clk 0:00:36]}  Rce8 {[%clk 0:01:29]} 27. Qd2 {[%clk 0:00:13]}  Rxe1+ {[%clk 0:01:22]} 28. Qxe1 {[%clk 0:00:14]}  Re8 {[%clk 0:01:20]} 29. Qf2 {[%clk 0:00:15]}  Qe7 {[%clk 0:01:04]} 30. Rd1 {[%clk 0:00:08]}  Nxb3 {[%clk 0:01:01]} 31. Qb6 {[%clk 0:00:08]}  Bxc4 {[%clk 0:00:54]} 32. Bxd6 {[%clk 0:00:08]}  Qe2 {[%clk 0:00:51]} 33. Rb1 {[%clk 0:00:02]}  Nd2 {[%clk 0:00:43]} 34. Rc1 {[%clk 0:00:03]}  b3 {[%clk 0:00:35]} 35. Qc6 {[%clk 0:00:03]}  b2 {[%clk 0:00:34]} 36. Rf1 {[%clk 0:00:01]}  b1=Q {[%clk 0:00:27]} 0-1


[Site "https://www.chess.com"]

[Event "Titled Tuesday Blitz April 4 Late 2023"]
[White "Gubajdullin, Alexei"]
[Black "EREBUNI91"]
[WhiteFideId "4141202"]
[WhiteElo "2279"]
[BlackElo "2654"]
[Result "0-1"]
[Round "05"]
[TimeControl "180+2"]
[Date "2023.04.04"]
[WhiteClock "0:00:04"]
[BlackClock "0:00:24"]

1. d4 {[%clk 0:02:51]}  Nf6 {[%clk 0:02:59]} 2. Nf3 {[%clk 0:02:51]}  e6 {[%clk 0:02:59]} 3. Bf4 {[%clk 0:02:51]}  b6 {[%clk 0:02:56]} 4. e3 {[%clk 0:02:50]}  Bb7 {[%clk 0:02:56]} 5. h3 {[%clk 0:02:49]}  Be7 {[%clk 0:02:56]} 6. Be2 {[%clk 0:02:49]}  O-O {[%clk 0:02:56]} 7. O-O {[%clk 0:02:49]}  d5 {[%clk 0:02:57]} 8. a4 {[%clk 0:02:48]}  a6 {[%clk 0:02:56]} 9. a5 {[%clk 0:02:48]}  b5 {[%clk 0:02:56]} 10. Nbd2 {[%clk 0:02:47]}  Nbd7 {[%clk 0:02:55]} 11. Nb3 {[%clk 0:02:46]}  c5 {[%clk 0:02:55]} 12. dxc5 {[%clk 0:02:45]}  Nxc5 {[%clk 0:02:56]} 13. Nxc5 {[%clk 0:02:45]}  Bxc5 {[%clk 0:02:56]} 14. Be5 {[%clk 0:02:45]}  Rc8 {[%clk 0:02:55]} 15. c3 {[%clk 0:02:44]}  Qe7 {[%clk 0:02:46]} 16. Bd4 {[%clk 0:02:43]}  Rfd8 {[%clk 0:02:45]} 17. Ne5 {[%clk 0:02:42]}  Nd7 {[%clk 0:02:42]} 18. Nxd7 {[%clk 0:02:36]}  Rxd7 {[%clk 0:02:43]} 19. f4 {[%clk 0:02:35]}  f6 {[%clk 0:02:41]} 20. Bd3 {[%clk 0:02:34]}  Re8 {[%clk 0:02:33]} 21. Qh5 {[%clk 0:02:29]}  g6 {[%clk 0:02:23]} 22. Qh4 {[%clk 0:02:29]}  Rf8 {[%clk 0:02:23]} 23. g4 {[%clk 0:02:21]}  Bd6 {[%clk 0:01:59]} 24. Qh6 {[%clk 0:01:23]}  e5 {[%clk 0:01:41]} 25. fxe5 {[%clk 0:01:23]}  fxe5 {[%clk 0:01:42]} 26. Rxf8+ {[%clk 0:01:22]}  Qxf8 {[%clk 0:01:41]} 27. Qxf8+ {[%clk 0:01:22]}  Kxf8 {[%clk 0:01:42]} 28. Rf1+ {[%clk 0:01:21]}  Rf7 {[%clk 0:00:48]} 29. Bb6 {[%clk 0:01:18]}  Bc8 {[%clk 0:00:44]} 30. Rxf7+ {[%clk 0:01:05]}  Kxf7 {[%clk 0:00:45]} 31. Kg2 {[%clk 0:01:04]}  Be7 {[%clk 0:00:41]} 32. Be2 {[%clk 0:01:01]}  Be6 {[%clk 0:00:40]} 33. Bf3 {[%clk 0:00:59]}  Kf6 {[%clk 0:00:33]} 34. h4 {[%clk 0:00:56]}  Kg7 {[%clk 0:00:29]} 35. g5 {[%clk 0:00:54]}  h6 {[%clk 0:00:29]} 36. Bc7 {[%clk 0:00:46]}  e4 {[%clk 0:00:22]} 37. Be5+ {[%clk 0:00:25]}  Kh7 {[%clk 0:00:22]} 38. Be2 {[%clk 0:00:22]}  hxg5 {[%clk 0:00:22]} 39. hxg5 {[%clk 0:00:22]}  Bxg5 {[%clk 0:00:23]} 40. Bf4 {[%clk 0:00:22]}  Bd8 {[%clk 0:00:21]} 41. Kg3 {[%clk 0:00:16]}  Bxa5 {[%clk 0:00:21]} 42. Be5 {[%clk 0:00:14]}  g5 {[%clk 0:00:21]} 43. Bd4 {[%clk 0:00:13]}  Kg6 {[%clk 0:00:21]} 44. Bg4 {[%clk 0:00:12]}  Bc7+ {[%clk 0:00:21]} 45. Kh3 {[%clk 0:00:11]}  Bf5 {[%clk 0:00:20]} 46. b4 {[%clk 0:00:10]}  a5 {[%clk 0:00:19]} 47. bxa5 {[%clk 0:00:09]}  Bxa5 {[%clk 0:00:20]} 48. Kg3 {[%clk 0:00:09]}  Bc7+ {[%clk 0:00:20]} 49. Kh3 {[%clk 0:00:09]}  Bd6 {[%clk 0:00:21]} 50. Bb6 {[%clk 0:00:08]}  Be5 {[%clk 0:00:21]} 51. Ba5 {[%clk 0:00:07]}  Kf6 {[%clk 0:00:21]} 52. Bb4 {[%clk 0:00:07]}  Ke6 {[%clk 0:00:21]} 53. Ba5 {[%clk 0:00:07]}  Bf6 {[%clk 0:00:20]} 54. Bb4 {[%clk 0:00:06]}  Bd8 {[%clk 0:00:20]} 55. Kg3 {[%clk 0:00:06]}  Bb6 {[%clk 0:00:20]} 56. Bxf5+ {[%clk 0:00:04]}  Kxf5 {[%clk 0:00:21]} 57. Kf2 {[%clk 0:00:05]}  g4 {[%clk 0:00:21]} 58. Bd6 {[%clk 0:00:05]}  Bd8 {[%clk 0:00:20]} 59. Ke2 {[%clk 0:00:05]}  Bf6 {[%clk 0:00:20]} 60. Bb4 {[%clk 0:00:04]}  Be5 {[%clk 0:00:20]} 61. Kf2 {[%clk 0:00:04]}  Kg5 {[%clk 0:00:20]} 62. Kg2 {[%clk 0:00:04]}  Kf5 {[%clk 0:00:19]} 63. Ba5 {[%clk 0:00:04]}  Ke6 {[%clk 0:00:19]} 64. Bb4 {[%clk 0:00:04]}  Kd7 {[%clk 0:00:19]} 65. Ba5 {[%clk 0:00:04]}  Kc6 {[%clk 0:00:20]} 66. Bb4 {[%clk 0:00:05]}  Bd6 {[%clk 0:00:20]} 67. Ba5 {[%clk 0:00:05]}  Kc5 {[%clk 0:00:21]} 68. Bb4+ {[%clk 0:00:05]}  Kc6 {[%clk 0:00:21]} 69. Ba5 {[%clk 0:00:05]}  Be5 {[%clk 0:00:18]} 70. Kf2 {[%clk 0:00:05]}  Kc5 {[%clk 0:00:17]} 71. Ke2 {[%clk 0:00:02]}  Kc4 {[%clk 0:00:17]} 72. Kd2 {[%clk 0:00:02]}  g3 {[%clk 0:00:17]} 73. Ke2 {[%clk 0:00:02]}  Bxc3 {[%clk 0:00:17]} 74. Bc7 {[%clk 0:00:03]}  b4 {[%clk 0:00:17]} 75. Bxg3 {[%clk 0:00:02]}  b3 {[%clk 0:00:17]} 76. Kd1 {[%clk 0:00:03]}  Kd3 {[%clk 0:00:18]} 77. Kc1 {[%clk 0:00:03]}  Kxe3 {[%clk 0:00:18]} 78. Kb1 {[%clk 0:00:03]}  Kd3 {[%clk 0:00:18]} 79. Bh4 {[%clk 0:00:04]}  d4 {[%clk 0:00:18]} 80. Bg3 {[%clk 0:00:04]}  e3 {[%clk 0:00:19]} 81. Bh4 {[%clk 0:00:04]}  e2 {[%clk 0:00:19]} 82. Bg3 {[%clk 0:00:04]}  e1=Q+ {[%clk 0:00:19]} 83. Bxe1 {[%clk 0:00:05]}  Bxe1 {[%clk 0:00:20]} 84. Kb2 {[%clk 0:00:06]}  Ke2 {[%clk 0:00:20]} 85. Kxb3 {[%clk 0:00:07]}  d3 {[%clk 0:00:20]} 86. Kc4 {[%clk 0:00:08]}  d2 {[%clk 0:00:20]} 87. Kd5 {[%clk 0:00:08]}  d1=Q+ {[%clk 0:00:21]} 88. Ke4 {[%clk 0:00:09]}  Qd3+ {[%clk 0:00:21]} 89. Ke5 {[%clk 0:00:10]}  Bc3+ {[%clk 0:00:22]} 90. Ke6 {[%clk 0:00:11]}  Qe4+ {[%clk 0:00:22]} 91. Kd6 {[%clk 0:00:09]}  Kd3 {[%clk 0:00:22]} 92. Kc5 {[%clk 0:00:06]}  Qf5+ {[%clk 0:00:22]} 93. Kb6 {[%clk 0:00:06]}  Kc4 {[%clk 0:00:21]} 94. Ka7 {[%clk 0:00:07]}  Qb5 {[%clk 0:00:21]} 95. Ka8 {[%clk 0:00:07]}  Kc5 {[%clk 0:00:22]} 96. Ka7 {[%clk 0:00:05]}  Kc6 {[%clk 0:00:23]} 97. Ka8 {[%clk 0:00:04]}  Qb7# {[%clk 0:00:24]} 0-1


[Site "https://www.chess.com"]

[Event "Titled Tuesday Blitz April 4 Late 2023"]
[White "Becerra, Juan David"]
[Black "Dubov, Daniil"]
[WhiteFideId "4404998"]
[BlackFideId "24126055"]
[WhiteElo "2276"]
[BlackElo "2802"]
[Result "1-0"]
[Round "05"]
[TimeControl "180+2"]
[Date "2023.04.04"]
[WhiteClock "0:00:10"]
[BlackClock "0:00:02"]

1. e4 {[%clk 0:02:56]}  c5 {[%clk 0:02:59]} 2. d4 {[%clk 0:02:45]}  cxd4 {[%clk 0:02:58]} 3. c3 {[%clk 0:02:44]}  e5 {[%clk 0:02:58]} 4. cxd4 {[%clk 0:02:42]}  exd4 {[%clk 0:02:58]} 5. Nf3 {[%clk 0:02:42]}  Nc6 {[%clk 0:02:58]} 6. Nxd4 {[%clk 0:02:42]}  Nf6 {[%clk 0:02:58]} 7. Nxc6 {[%clk 0:02:40]}  dxc6 {[%clk 0:02:57]} 8. Qxd8+ {[%clk 0:02:38]}  Kxd8 {[%clk 0:02:58]} 9. Bg5 {[%clk 0:02:27]}  h6 {[%clk 0:02:56]} 10. Bxf6+ {[%clk 0:02:25]}  gxf6 {[%clk 0:02:56]} 11. Nc3 {[%clk 0:02:25]}  Be6 {[%clk 0:02:56]} 12. Be2 {[%clk 0:02:13]}  Bc5 {[%clk 0:02:53]} 13. O-O {[%clk 0:02:08]}  Ke7 {[%clk 0:02:53]} 14. Rfd1 {[%clk 0:02:08]}  Rhd8 {[%clk 0:02:52]} 15. h3 {[%clk 0:01:56]}  Rxd1+ {[%clk 0:02:48]} 16. Rxd1 {[%clk 0:01:57]}  Rd8 {[%clk 0:02:48]} 17. Rxd8 {[%clk 0:01:50]}  Kxd8 {[%clk 0:02:48]} 18. Bg4 {[%clk 0:01:50]}  Bc4 {[%clk 0:02:39]} 19. Be2 {[%clk 0:01:50]}  Be6 {[%clk 0:02:37]} 20. Bg4 {[%clk 0:01:50]}  Bd4 {[%clk 0:02:35]} 21. Bxe6 {[%clk 0:01:42]}  fxe6 {[%clk 0:02:35]} 22. Kf1 {[%clk 0:01:40]}  Ke7 {[%clk 0:02:31]} 23. g3 {[%clk 0:01:33]}  Kd6 {[%clk 0:02:29]} 24. f4 {[%clk 0:01:29]}  Kc5 {[%clk 0:02:22]} 25. Nd1 {[%clk 0:01:20]}  Kb4 {[%clk 0:02:11]} 26. Ke2 {[%clk 0:01:14]}  c5 {[%clk 0:02:11]} 27. Kd3 {[%clk 0:01:10]}  b5 {[%clk 0:02:08]} 28. g4 {[%clk 0:00:35]}  Bg1 {[%clk 0:00:53]} 29. e5 {[%clk 0:00:28]}  fxe5 {[%clk 0:00:29]} 30. f5 {[%clk 0:00:29]}  c4+ {[%clk 0:00:29]} 31. Ke4 {[%clk 0:00:28]}  exf5+ {[%clk 0:00:29]} 32. gxf5 {[%clk 0:00:29]}  Bc5 {[%clk 0:00:26]} 33. Kxe5 {[%clk 0:00:27]}  Bf8 {[%clk 0:00:23]} 34. f6 {[%clk 0:00:19]}  Kc5 {[%clk 0:00:22]} 35. a3 {[%clk 0:00:16]}  a5 {[%clk 0:00:22]} 36. Nc3 {[%clk 0:00:16]}  b4 {[%clk 0:00:21]} 37. Ne4+ {[%clk 0:00:15]}  Kc6 {[%clk 0:00:11]} 38. a4 {[%clk 0:00:14]}  b3 {[%clk 0:00:08]} 39. Kd4 {[%clk 0:00:11]}  Kd7 {[%clk 0:00:04]} 40. Kxc4 {[%clk 0:00:11]}  Ke6 {[%clk 0:00:05]} 41. Kxb3 {[%clk 0:00:11]}  Ke5 {[%clk 0:00:05]} 42. Nd2 {[%clk 0:00:10]}  Kxf6 {[%clk 0:00:05]} 43. Nc4 {[%clk 0:00:09]}  Bb4 {[%clk 0:00:05]} 44. Ne3 {[%clk 0:00:09]}  Kg5 {[%clk 0:00:05]} 45. Kc4 {[%clk 0:00:09]}  h5 {[%clk 0:00:04]} 46. Nd5 {[%clk 0:00:09]}  Be1 {[%clk 0:00:04]} 47. b4 {[%clk 0:00:09]}  axb4 {[%clk 0:00:04]} 48. Nxb4 {[%clk 0:00:10]}  Kh4 {[%clk 0:00:02]} 49. a5 {[%clk 0:00:10]} 1-0


[Site "https://www.chess.com"]

[Event "Titled Tuesday Blitz April 4 Late 2023"]
[White "Przybylski, Wojciech"]
[Black "Costachi, Mihnea"]
[WhiteFideId "1117599"]
[BlackFideId "1217518"]
[WhiteElo "2222"]
[BlackElo "2456"]
[Result "1-0"]
[Round "05"]
[TimeControl "180+2"]
[Date "2023.04.04"]
[WhiteClock "0:00:05"]
[BlackClock "0:00:12"]

1. e4 {[%clk 0:03:00]}  e5 {[%clk 0:03:00]} 2. Nf3 {[%clk 0:02:55]}  Nc6 {[%clk 0:03:00]} 3. Bb5 {[%clk 0:02:54]}  a6 {[%clk 0:02:59]} 4. Ba4 {[%clk 0:02:54]}  d6 {[%clk 0:03:00]} 5. h3 {[%clk 0:02:53]}  Bd7 {[%clk 0:03:01]} 6. c3 {[%clk 0:02:52]}  g6 {[%clk 0:03:01]} 7. O-O {[%clk 0:02:52]}  Bg7 {[%clk 0:03:02]} 8. Re1 {[%clk 0:02:52]}  Nf6 {[%clk 0:03:02]} 9. d3 {[%clk 0:02:51]}  O-O {[%clk 0:03:03]} 10. Nbd2 {[%clk 0:02:50]}  b5 {[%clk 0:03:02]} 11. Bb3 {[%clk 0:02:50]}  Na5 {[%clk 0:03:02]} 12. Bc2 {[%clk 0:02:50]}  c5 {[%clk 0:03:03]} 13. d4 {[%clk 0:02:45]}  Re8 {[%clk 0:03:02]} 14. Nf1 {[%clk 0:02:40]}  cxd4 {[%clk 0:03:01]} 15. cxd4 {[%clk 0:02:39]}  Qc7 {[%clk 0:03:02]} 16. Bd3 {[%clk 0:02:37]}  Rac8 {[%clk 0:02:59]} 17. d5 {[%clk 0:02:31]}  Nc4 {[%clk 0:02:56]} 18. b3 {[%clk 0:02:28]}  Nb6 {[%clk 0:02:56]} 19. Bd2 {[%clk 0:02:27]}  Qb8 {[%clk 0:02:53]} 20. Ba5 {[%clk 0:02:21]}  Nh5 {[%clk 0:02:52]} 21. Ne3 {[%clk 0:02:17]}  Nf4 {[%clk 0:02:52]} 22. Bf1 {[%clk 0:02:14]}  f5 {[%clk 0:02:53]} 23. Nd2 {[%clk 0:02:11]}  Rf8 {[%clk 0:02:42]} 24. g3 {[%clk 0:01:49]}  Nh5 {[%clk 0:02:42]} 25. exf5 {[%clk 0:01:49]}  Nf6 {[%clk 0:02:30]} 26. fxg6 {[%clk 0:01:45]}  hxg6 {[%clk 0:02:31]} 27. Bg2 {[%clk 0:01:45]}  Qb7 {[%clk 0:02:18]} 28. Ne4 {[%clk 0:01:43]}  Nxe4 {[%clk 0:02:18]} 29. Bxe4 {[%clk 0:01:43]}  Bf5 {[%clk 0:02:18]} 30. Qd3 {[%clk 0:01:30]}  Bxe4 {[%clk 0:01:51]} 31. Qxe4 {[%clk 0:01:29]}  Kh7 {[%clk 0:01:51]} 32. Qh4+ {[%clk 0:01:25]}  Kg8 {[%clk 0:01:51]} 33. Qe4 {[%clk 0:01:22]}  Kh7 {[%clk 0:01:49]} 34. h4 {[%clk 0:01:18]}  Bh6 {[%clk 0:01:07]} 35. h5 {[%clk 0:01:10]}  Rg8 {[%clk 0:01:07]} 36. Ng4 {[%clk 0:01:07]}  Rcf8 {[%clk 0:01:04]} 37. Nxh6 {[%clk 0:01:03]}  Kxh6 {[%clk 0:01:04]} 38. Qe3+ {[%clk 0:01:03]}  Kh7 {[%clk 0:01:01]} 39. Qxb6 {[%clk 0:00:53]}  Qf7 {[%clk 0:01:00]} 40. h6 {[%clk 0:00:48]}  Kxh6 {[%clk 0:00:57]} 41. Re4 {[%clk 0:00:47]}  Kg7 {[%clk 0:00:54]} 42. Qe3 {[%clk 0:00:34]}  Rh8 {[%clk 0:00:50]} 43. Rd1 {[%clk 0:00:23]}  Qf5 {[%clk 0:00:47]} 44. g4 {[%clk 0:00:23]}  Qf6 {[%clk 0:00:44]} 45. Qg3 {[%clk 0:00:21]}  g5 {[%clk 0:00:36]} 46. Kg2 {[%clk 0:00:18]}  Qg6 {[%clk 0:00:29]} 47. Rde1 {[%clk 0:00:16]}  Rh4 {[%clk 0:00:29]} 48. R4e3 {[%clk 0:00:07]}  Rfh8 {[%clk 0:00:29]} 49. Kf1 {[%clk 0:00:07]}  Qc2 {[%clk 0:00:23]} 50. Rf3 {[%clk 0:00:05]}  Rh1+ {[%clk 0:00:20]} 51. Kg2 {[%clk 0:00:06]}  Rxe1 {[%clk 0:00:21]} 52. Bxe1 {[%clk 0:00:05]}  Qe4 {[%clk 0:00:19]} 53. Bd2 {[%clk 0:00:04]}  Qxd5 {[%clk 0:00:19]} 54. Bxg5 {[%clk 0:00:04]}  Qd1 {[%clk 0:00:14]} 55. Bf6+ {[%clk 0:00:04]}  Kg6 {[%clk 0:00:14]} 56. Bxh8 {[%clk 0:00:04]}  e4 {[%clk 0:00:11]} 57. Rf6+ {[%clk 0:00:04]}  Kh7 {[%clk 0:00:11]} 58. Qh4+ {[%clk 0:00:04]}  Kg8 {[%clk 0:00:12]} 59. Qg5+ {[%clk 0:00:04]}  Kxh8 {[%clk 0:00:12]} 60. Qh6+ {[%clk 0:00:04]}  Kg8 {[%clk 0:00:12]} 61. Rf8# {[%clk 0:00:05]} 1-0


[Site "https://www.chess.com"]